fUST/lending_fUST_20240702
["ID","MTS","AMOUNT","RATE_DAILY","PERIOD"]
[330890089,1719914096893,-500.0,0.00015527,2]
[330890090,1719914096916,-508.10543825,0.00015527,2]
[330890091,1719914096942,-500.0,0.00015527,2]
[330890092,1719914096969,-505.0447169,0.00015527,2]
[330890093,1719914096993,-390.4820704,0.00015527,2]
[330890094,1719914097015,-500.0,0.00015527,2]
[330890095,1719914097043,-500.0,0.00015527,2]
[330890096,1719914097066,-502.60847579,0.00015527,2]
[330890097,1719914097091,-504.24869464,0.00015527,2]
[330890098,1719914097114,-503.85199557,0.00015527,2]
[330890099,1719914097139,-209.93455945,0.00015527,2]
[330890100,1719914097165,-151.0,0.00015527,2]
[330890101,1719914097189,-500.0,0.00015527,2]
[330890102,1719914097213,-509.95308106,0.00015527,2]
[330890103,1719914097236,-504.01838315,0.00015527,2]
[330890104,1719914097260,-539.28,0.00015527,2]
[330890105,1719914097287,-504.35788494,0.00015527,2]
[330890106,1719914097314,-505.07481444,0.00015527,2]
[330890107,1719914097342,-155.99656302,0.00015527,2]
[330890108,1719914097371,-558.36408993,0.00015527,2]
[330890109,1719914097397,-646.8824038,0.00015527,2]
[330890110,1719914097423,-157.139694,0.00015527,2]
[330890111,1719914097447,-515.2618908,0.00015527,2]
[330890112,1719914097475,-151.0,0.00015527,2]
[330890113,1719914097500,-151.0,0.00015527,2]
[330890114,1719914097528,-505.84708477,0.00015527,2]
[330890115,1719914097556,-646.90948397,0.00015527,2]
[330890116,1719914097580,-505.66031512,0.00015527,2]
[330890117,1719914097603,-151.0,0.00015527,2]
[330890118,1719914097631,-151.0,0.00015527,2]
[330890119,1719914097655,-151.0,0.00015527,2]
[330890120,1719914097680,-151.0,0.00015527,2]
[330890121,1719914097713,-265.709593,0.00015527,2]
[330890122,1719914097738,-3753.592844,0.00015527,2]
[330890123,1719914097765,-3753.592844,0.00015527,2]
[330890124,1719914097790,-3753.592844,0.00015527,2]
[330890125,1719914097816,-3753.592844,0.00015527,2]
[330890126,1719914097843,-500.0,0.0001555,2]
[330890127,1719914097868,-499.99999999,0.000156,2]
[330890128,1719914098016,-4603.20338013,0.000156,2]
[330890163,1719914337649,181.10189,0.00014521,2]
[330890183,1719914749766,250.0,0.00014481,2]
[330890187,1719914868949,300.37055045,0.00015,2]
[330890188,1719914906433,181.1018917,0.00014456,2]
[330890194,1719914982980,-150.0,0.00015145,2]
[330890272,1719915039103,-620.00378849,0.00015367,2]
[330890273,1719915039113,-500.0,0.00015517,2]
[330890275,1719915039124,-525.52,0.00015518,2]
[330890276,1719915039135,-246.51,0.00015518,2]
[330890277,1719915039145,-500.0,0.00015518,2]
[330890278,1719915039156,-308.18251838,0.00015518,2]
[330890279,1719915039166,-499.80000002,0.00015518,2]
[330890280,1719915039176,-500.0,0.00015518,2]
[330890281,1719915039187,-295.27500851,0.00015518,2]
[330890282,1719915039200,-204.72499149,0.00015518,2]
[330890283,1719915039211,-500.0,0.00015518,2]
[330890284,1719915039221,-64.58694851,0.00015518,2]
[330890314,1719915044052,-1326.56,0.00015518,2]
[330890316,1719915044062,-854.79209898,0.00015518,2]
[330890322,1719915044274,-1006.60790102,0.00015518,2]
[330890323,1719915044283,-1069.88,0.00015518,2]
[330890324,1719915044293,-500.0,0.00015518,2]
[330890325,1719915044302,-503.46209898,0.00015518,2]
[330890504,1719915132515,6997.38575253,0.00014998,2]
[330890505,1719915167458,663.13570375,0.00014998,2]
[330890521,1719915192734,587.7182223,0.00014998,2]
[330890526,1719915243574,1816.40921068,0.00014999,2]
[330890541,1719915294697,1000.0,0.0001,2]
[330890542,1719915304232,1000.0,0.00012,2]
[330890543,1719915310984,1000.0,0.00013,2]
[330890544,1719915318112,1000.0,0.00014,2]
[330890547,1719915324082,1000.0,0.00015,2]
[330890548,1719915333261,1313.69980883,0.00012121,2]
[330890549,1719915336963,3769.18827951,0.00012121,2]
[330890550,1719915342765,193.69798923,0.00012121,2]
[330890551,1719915347400,1000.0,0.00015,2]
[330890552,1719915350739,1647.16795346,0.00012121,2]
[330890553,1719915355579,2855.3701221,0.00015,2]
[330890554,1719915366024,1000.0,0.00015,2]
[330890555,1719915378119,752.5278264,0.00014519,2]
[330890556,1719915381350,155.04208817,0.00012121,2]
[330890561,1719915401301,209.00127055,0.00014999,2]
[330890564,1719915494350,1486.46959515,0.00014999,2]
[330890567,1719915519458,11124.95236012,0.00014998,2]
[330890573,1719915574574,517.10415187,0.00014999,2]
[330890575,1719915667658,155.0300469,0.00014999,2]
[330890577,1719915679745,3096.11592703,0.00014999,2]
[330890578,1719915695750,874.70992442,0.00014999,2]
[330890579,1719915746575,210.39401569,0.00014999,2]
[330890580,1719915781479,1557.86076046,0.00014999,2]
[330890582,1719915819763,1088.40071052,0.00014999,2]
[330890583,1719915903062,723.78639686,0.00014999,2]
[330890584,1719915923665,5747.36486918,0.00014998,2]
[330890585,1719915927484,2124.31454783,0.00014999,2]
[330890587,1719915931767,2117.93187801,0.00014999,2]
[330890588,1719915934451,1103.47973038,0.00015,2]
[330890593,1719915998014,303.54102409,0.00015,2]
[330890594,1719916009815,1330.44466547,0.00014999,2]
[330890602,1719916100457,1047.8061552,0.00015,2]
[330890605,1719916158819,611.34460257,0.00014999,2]
[330890612,1719916197756,2117.93187801,0.00014999,2]
[330890613,1719916200387,4556.30947534,0.00014999,2]
[330890614,1719916202776,1313.69980883,0.00014999,2]
[330890616,1719916222055,847.94793152,0.00014999,2]
[330890617,1719916233311,3076.83798714,0.00014999,2]
[330890644,1719916234719,-561.46296804,0.00015255,2]
[330890646,1719916234731,-552.72494088,0.00015255,2]
[330890701,1719916240370,-2035.52337484,0.00015255,2]
[330890706,1719916240562,-581.02139,0.00015255,2]
[330890708,1719916240574,-1557.19716718,0.00015255,2]
[330890709,1719916240584,-291.92167137,0.00015415,2]
[330890710,1719916240594,-300.0,0.00015514,2]
[330890711,1719916240604,-434.32,0.00015514,2]
[330890712,1719916240614,-1271.29,0.00015515,2]
[330890713,1719916240624,-1783.84,0.00015515,2]
[330890714,1719916240634,-1025.3,0.00015515,2]
[330890715,1719916240643,-221.89,0.00015515,2]
[330890716,1719916240653,-958.81,0.00015515,2]
[330890718,1719916240663,-500.0,0.00015515,2]
[330890720,1719916240673,-3742.3055529,0.00015515,2]
[330890721,1719916240687,-620.8344471,0.00015515,2]
[330890722,1719916240696,-500.0,0.00015515,2]
[330890723,1719916240707,-506.27329443,0.00015515,2]
[330890724,1719916240717,-812.64,0.00015515,2]
[330890725,1719916240727,-2231.12,0.00015515,2]
[330890726,1719916240737,-217.77134075,0.00015515,2]
[330890727,1719916240748,-767.26,0.00015515,2]
[330890728,1719916240758,-1219.0,0.00015515,2]
[330890729,1719916240768,-5710.10830386,0.00015515,2]
[330890738,1719916243548,-267.58528258,0.00015515,2]
[330890739,1719916243559,-338.65998381,0.00015515,2]
[330890740,1719916243689,-1411.66097238,0.00015515,2]
[330890769,1719916258442,154.98277356,0.00014999,2]
[330890770,1719916262075,1487.99362785,0.00014999,2]
[330890771,1719916264062,6976.32251601,0.00014998,2]
[330890772,1719916278583,248.54554527,0.00014999,2]
[330890773,1719916297786,154.88383712,0.00014999,2]
[330890774,1719916298676,155.29222222,0.00014999,2]
[330890777,1719916354382,210.73530334,0.00014999,2]
[330890778,1719916358624,273.37336231,9.9e-05,2]
[330890779,1719916366587,273.37336231,9.9e-05,2]
[330890780,1719916373941,521.7933272,0.00014999,2]
[330890781,1719916377722,1122.1124014,0.00014999,2]
[330890782,1719916384135,329.25970919,0.00014999,2]
[330890783,1719916403468,191.7722736,0.00014999,2]
[330890784,1719916428069,375.86898115,0.00014999,2]
[330890785,1719916436287,173.7441429,0.00014999,2]
[330890786,1719916467828,191.79918218,0.00014999,2]
[330890788,1719916474693,182.08872218,0.00014999,2]
[330890789,1719916477008,293.87727024,0.00014999,2]
[330890790,1719916490708,7087.95820415,0.00014998,2]
[330890791,1719916492861,155.08929671,0.00014999,2]
[330890792,1719916493811,182.904275,0.00014999,2]
[330890793,1719916500854,155.03468326,0.00014999,2]
[330890794,1719916506019,3108.34007968,0.00014999,2]
[330890795,1719916506322,155.15799191,0.00014999,2]
[330890796,1719916508363,3074.51984466,0.00014999,2]
[330890797,1719916515536,524.67444519,0.00014999,2]
[330890800,1719916522167,232.30991908,0.00014999,2]
[330890803,1719916531075,2131.93815612,0.00014999,2]
[330890805,1719916540604,373.67425734,0.00014999,2]
[330890810,1719916546623,916.65609247,0.00015,2]
[330890811,1719916546666,155.14660158,0.00014999,2]
[330890813,1719916562868,587.56918089,0.00014999,2]
[330890834,1719916651528,369.38118446,0.00014999,2]
[330890835,1719916657393,232.29883522,0.00014999,2]
[330890836,1719916659844,2042.61810027,0.00014999,2]
[330890837,1719916660479,677.12848532,0.00014999,2]
[330890838,1719916662032,8452.5861772,0.00014998,2]
[330890849,1719916667949,948.35061402,0.00015,2]
[330890850,1719916672706,159.50203201,0.00014999,2]
[330890851,1719916690359,525.43916993,0.00014999,2]
[330890852,1719916691089,395.40396479,0.00014999,2]
[330890853,1719916694270,726.68067841,0.00014999,2]
[330890854,1719916735616,659.88884751,0.00014999,2]
[330890855,1719916762547,155.47216477,0.00014999,2]
[330890856,1719916769933,1352.3140712,0.00014491,2]
[330890857,1719916780996,164.49158165,0.00014999,2]
[330890859,1719916900781,638.26535884,0.00014999,2]
[330890860,1719916914565,154.89931544,0.00014999,2]
[330890866,1719916969869,250.0,0.0001449,2]
[330890867,1719916970867,406.02029299,0.00014999,2]
[330890868,1719916973950,2041.8718293,0.00014999,2]
[330890869,1719916984361,524.67444519,0.00014999,2]
[330890871,1719917015063,3347.34620951,0.00014999,2]
[330890872,1719917069643,2426.55228949,0.00015,2]
[330890873,1719917072609,3638.2362628,0.00014498,2]
[330890874,1719917076455,2508.04099003,0.00014999,4]
[330890875,1719917077592,155.53724336,0.00014999,2]
[330890876,1719917121382,293.13810397,0.00014999,2]
[330890877,1719917179879,2041.8718293,0.00014999,2]
[330890878,1719917235169,2418.35340166,0.00015,2]
[330890879,1719917251133,2418.35340166,0.00015,2]
[330890882,1719917300768,156.1359142,0.00014999,2]
[330890884,1719917359176,151.0,0.00015,2]
[330890885,1719917387883,254.4623028,0.00014999,2]
[330890886,1719917400194,-569.199093,0.00015288,2]
[330890888,1719917400232,-569.199093,0.00015288,2]
[330890890,1719917400288,-310.15891385,0.00015288,2]
[330890941,1719917432538,-255.43146244,0.00015412,2]
[330890943,1719917432547,-36.03949374,0.0001542,2]
[330890945,1719917432559,-750.86479006,0.0001542,2]
[330890947,1719917432569,-549.2,0.00015449,2]
[330890949,1719917432577,-872.87,0.00015449,2]
[330890951,1719917432586,-2408.39,0.00015449,2]
[330890953,1719917432596,-16756.81,0.00015449,2]
[330890955,1719917432606,-2128.13,0.00015449,2]
[330890957,1719917432615,-1637.50520994,0.00015449,2]
[330891103,1719917441215,-999.9933705,0.00015449,2]
[330891104,1719917441241,-798.34141956,0.00015449,2]
[330891105,1719917441254,-500.0,0.00015449,2]
[330891106,1719917441263,-500.0,0.00015449,2]
[330891107,1719917441273,-4545.17265607,0.0001545,2]
[330891108,1719917441285,-2181.80138934,0.0001545,2]
[330891109,1719917441298,-459.088,0.0001545,2]
[330891139,1719917444479,-1604.89677177,0.0001545,2]
[330891140,1719917444536,-1284.93830494,0.0001545,2]
[330891141,1719917444547,-57601.7893315,0.0001545,2]
[330891142,1719917444557,-6754.53830887,0.00015512,2]
[330891143,1719917444566,-500.0,0.00015512,2]
[330891144,1719917444576,-500.0,0.00015512,2]
[330891145,1719917444585,-500.0,0.00015512,2]
[330891146,1719917444595,-500.0,0.00015512,2]
[330891147,1719917444604,-235.50231353,0.00015512,2]
[330891148,1719917444613,-500.0,0.00015512,2]
[330891149,1719917444757,-500.0,0.00015512,2]
[330891150,1719917444767,-500.0,0.00015512,2]
[330891151,1719917444780,-500.0,0.00015512,2]
[330891152,1719917444789,-500.0,0.00015512,2]
[330891153,1719917444798,-360.09546543,0.00015512,2]
[330891154,1719917444807,-500.0,0.00015512,2]
[330891155,1719917444816,-517.32955578,0.00015512,2]
[330891156,1719917444826,-890.59,0.00015512,2]
[330891157,1719917444835,-500.0,0.00015512,2]
[330891158,1719917444844,-500.0,0.00015512,2]
[330891159,1719917444854,-500.0,0.00015512,2]
[330891160,1719917444863,-500.0,0.00015512,2]
[330891161,1719917444873,-1641.0,0.00015512,2]
[330891162,1719917444882,-1709.51,0.00015512,2]
[330891163,1719917444891,-982.58,0.00015512,2]
[330891164,1719917444900,-571.15427846,0.00015512,2]
[330891165,1719917444909,-918.86,0.00015512,2]
[330891166,1719917444918,-500.0,0.00015512,2]
[330891167,1719917444927,-500.0,0.00015512,2]
[330891168,1719917444936,-4371.94,0.00015512,2]
[330891169,1719917444945,-500.0,0.00015512,2]
[330891170,1719917444956,-500.0,0.00015512,2]
[330891171,1719917444965,-497.87520772,0.00015512,2]
[330891172,1719917444976,-500.0,0.00015512,2]
[330891173,1719917444985,-500.0,0.00015512,2]
[330891174,1719917444994,-500.0,0.00015512,2]
[330891175,1719917445003,-447.51763886,0.00015512,2]
[330891329,1719917446551,-52.48236114,0.00015512,2]
[330891331,1719917446560,-500.0,0.00015512,2]
[330891333,1719917446570,-500.0,0.00015512,2]
[330891335,1719917446579,-500.0,0.00015512,2]
[330891337,1719917446588,-500.0,0.00015512,2]
[330891339,1719917446598,-504.41638967,0.00015512,2]
[330891341,1719917446607,-735.29,0.00015512,2]
[330891343,1719917446617,-525.55,0.00015512,2]
[330891345,1719917446627,-1168.21,0.00015512,2]
[330891347,1719917446637,-500.0,0.00015512,2]
[330891349,1719917446647,-6025.04,0.00015512,2]
[330891351,1719917446656,-500.0,0.00015512,2]
[330891353,1719917446665,-500.0,0.00015512,2]
[330891355,1719917446674,-500.0,0.00015512,2]
[330891357,1719917446684,-289.60180545,0.00015512,2]
[330891359,1719917446698,-500.0,0.00015513,2]
[330891361,1719917446707,-500.0,0.00015513,2]
[330891363,1719917446716,-665.09,0.00015513,2]
[330891365,1719917446727,-500.0,0.00015513,2]
[330891367,1719917446738,-500.0,0.00015513,2]
[330891369,1719917446747,-4975.83263311,0.00015513,2]
[330891372,1719917446760,-425.87736689,0.00015513,2]
[330891374,1719917446773,-500.0,0.00015513,2]
[330891376,1719917446784,-500.0,0.00015513,2]
[330891378,1719917446794,-886.09,0.00015513,2]
[330891380,1719917446803,-500.0,0.00015513,2]
[330891382,1719917446812,-688.11,0.00015513,2]
[330891384,1719917446822,-848.85,0.00015513,2]
[330891386,1719917446831,-500.0,0.00015513,2]
[330891388,1719917446841,-1430.6,0.00015513,2]
[330891390,1719917446851,-500.0,0.00015513,2]
[330891391,1719917446861,-930.05,0.00015513,2]
[330891393,1719917446870,-500.0,0.00015513,2]
[330891395,1719917446880,-504.24131858,0.00015513,2]
[330891397,1719917446889,-542.21980299,0.00015513,2]
[330891400,1719917446899,-500.0,0.00015513,2]
[330891401,1719917446908,-500.0,0.00015513,2]
[330891404,1719917446918,-2974.24,0.00015513,2]
[330891406,1719917446928,-500.0,0.00015513,2]
[330891407,1719917446938,-500.0,0.00015513,2]
[330891409,1719917446947,-500.0,0.00015513,2]
[330891411,1719917446958,-571.72,0.00015513,2]
[330891413,1719917446968,-318.05819918,0.00015513,2]
[330891415,1719917446978,-611.14,0.00015513,2]
[330891417,1719917446987,-500.0,0.00015513,2]
[330891419,1719917446996,-502.2866541,0.00015513,2]
[330891421,1719917447007,-500.0,0.00015513,2]
[330891423,1719917447016,-500.0,0.00015513,2]
[330891425,1719917447025,-647.75,0.00015513,2]
[330891427,1719917447034,-500.0,0.00015513,2]
[330891429,1719917447044,-500.0,0.00015513,2]
[330891431,1719917447053,-177.45872468,0.00015513,2]
[330891669,1719917449387,2125.30252605,0.00014999,2]
[330892468,1719917472243,176.82898774,0.00014999,2]
[330892469,1719917561434,207.95202431,0.00014999,2]
[330892470,1719917584809,551.864758,0.00014514,2]
[330892471,1719917609757,163.2477609,0.00014999,2]
[330892472,1719917677994,328.42255755,0.00014999,2]
[330892473,1719917700946,209.5162882,0.00014999,2]
[330892474,1719917701422,2123.67886485,0.00014999,2]
[330892475,1719917742030,1292.65635963,0.00014999,2]
[330892478,1719917870616,3769.18827951,0.00014999,2]
[330892479,1719917873974,2099.6884772,0.00014999,2]
[330892480,1719917898336,312.4061696,0.00014999,2]
[330892481,1719917928951,212.3899949,0.00015,2]
[330892482,1719917948359,4826.71633385,0.00014999,2]
[330892483,1719917965158,2130.41057228,0.00014999,2]
[330892484,1719918018982,950.54391632,0.00015,2]
[330892485,1719918039263,6797.01479577,0.0001505,2]
[330892487,1719918064092,3055.08517,0.00014998,2]
[330892488,1719918064123,7646.23055155,0.00014998,2]
[330892489,1719918098667,2130.41057228,0.00014999,2]
[330892493,1719918129700,542.0530126,0.0001443,2]
[330892494,1719918192002,325.70219597,0.00015,2]
[330892495,1719918270669,2130.41057228,0.00014999,2]
[330892496,1719918301983,305.03017585,0.00014999,2]
[330892497,1719918308970,3075.6789159,0.00014999,2]
[330892500,1719918352044,848.86837099,0.00014999,2]
[330892501,1719918353225,934.12399024,0.00014999,2]
[330892502,1719918440856,1351.30558106,0.00014999,2]
[330892503,1719918467525,425.17063083,0.00014999,2]
[330892504,1719918475120,1488.52321555,0.00014999,2]
[330892506,1719918516864,933.60866086,0.00014999,2]
[330892509,1719918538492,1433.79006949,0.00014999,2]
[330892512,1719918562727,779.89377542,0.00014999,2]
[330892517,1719918586787,185.01212657,0.00014999,2]
[330892519,1719918617978,779.64459774,0.00014999,2]
[330892536,1719918632570,-500.0,0.000153,2]
[330892537,1719918632580,-223.5025296,0.00015347,2]
[330892538,1719918632590,-500.0,0.000154,2]
[330892540,1719918632600,-300.0,0.00015412,2]
[330892543,1719918632610,-4588.8974704,0.00015413,2]
[330892545,1719918632623,-1822.9100755,0.00015413,2]
[330892595,1719918638808,-986.66831885,0.00015413,2]
[330892596,1719918638818,-836.5,0.00015446,2]
[330892597,1719918638828,-2281.16655309,0.00015446,2]
[330892599,1719918638840,-26.87344691,0.00015446,2]
[330892600,1719918638850,-3023.12655309,0.00015446,2]
[330892735,1719918644092,-2317.46192472,0.00015446,2]
[330892736,1719918644104,-487.5,0.00015446,2]
[330892820,1719918651132,1487.46404015,0.00014999,2]
[330892821,1719918657661,776.37615452,0.00014999,2]
[330892822,1719918689499,1433.79006949,0.00014999,2]
[330892823,1719918746542,425.17063083,0.00014999,2]
[330892824,1719918783585,818.0194183,0.00014999,2]
[330892825,1719918809685,718.24278849,0.00014999,2]
[330892826,1719918851513,1433.79006949,0.00014999,2]
[330892827,1719918919043,292.15179624,0.00014999,2]
[330892828,1719918924873,3214.73869626,0.00014999,2]
[330892829,1719918938103,215.75304199,0.00014999,2]
[330892830,1719918962109,297.63066872,0.00014999,2]
[330892831,1719919058759,1616.08998774,0.00014999,2]
[330892832,1719919069946,1618.66906895,0.00014999,2]
[330892833,1719919077520,1434.13825847,0.00014999,2]
[330892834,1719919108441,532.22357579,0.00014999,2]
[330892835,1719919147319,213.2155615,0.00014999,2]
[330892836,1719919224548,1434.13825847,0.00014999,2]
[330892837,1719919254803,155.38470685,0.00014999,2]
[330892838,1719919262012,999.10133476,0.00014999,2]
[330892839,1719919392857,844.2945086,0.00014999,2]
[330892840,1719919484284,2888.62063535,0.00014999,2]
[330892841,1719919505224,776.37615452,0.00014999,2]
[330892842,1719919681235,775.860529,0.00014999,2]
[330892843,1719919690921,154.86836189,0.00014999,2]
[330892845,1719919726023,-583.19506798,0.00015076,2]
[330892846,1719919726202,-583.19506798,0.00015076,2]
[330892847,1719919726273,-419.3603224,0.00015076,2]
[330892850,1719919830102,208.98551847,0.00014999,2]
[330892865,1719919833145,-3702.17938258,0.00015076,2]
[330892867,1719919833155,-158.50747859,0.00015322,2]
[330892869,1719919833165,-195.5647134,0.00015343,2]
[330892871,1719919833175,-2099.12417969,0.00015345,2]
[330892873,1719919833185,-2099.12417965,0.00015346,2]
[330892875,1719919833195,-300.0,0.00015346,2]
[330892876,1719919833205,-300.0,0.00015346,2]
[330892877,1719919833216,-2099.12417965,0.00015347,2]
[330892879,1719919833226,-677.6023424,0.00015347,2]
[330892989,1719919849936,155.12588045,0.00014999,2]
[330892990,1719919883108,24900.0,0.00014425,2]
[330892991,1719919902724,175.11422341,0.00014999,2]
[330892992,1719919919209,293.25511652,0.00014999,2]
[330892993,1719919938512,427.57293099,0.00014999,2]
[330892994,1719919989404,310.00734058,0.00014999,2]
[330892995,1719920001077,250.87396914,0.00014999,2]
[330893004,1719920095927,209.144617,0.00014387,2]
[330893005,1719920112909,158.14375913,0.00014999,2]
[330893006,1719920114263,193.4130163,0.00014999,2]
[330893007,1719920120446,164.41835835,0.00014999,2]
[330893008,1719920130113,401.85436649,0.00014999,2]
[330893013,1719920148031,154.86836189,0.00014999,10]
[330893019,1719920207855,523.04533146,0.00014999,7]
[330893020,1719920209586,181.14978502,0.00014999,2]
[330893023,1719920250021,154.86836189,0.00014999,10]
[330893024,1719920259008,154.86836189,0.00014999,10]
[330893025,1719920295564,2042.61810027,0.00014999,2]
[330893028,1719920411967,3000.0,0.00014376,2]
[330893029,1719920418976,3598.89620744,0.00014999,2]
[330893032,1719920440002,24900.0,0.00014376,2]
[330893033,1719920522583,457.96077983,0.00014999,2]
[330893034,1719920549652,390.1277621,0.00014413,2]
[330893035,1719920553095,566.23632333,0.00014999,2]
[330893036,1719920595089,3074.87437864,0.00014999,2]
[330893037,1719920642453,2108.0505068,0.00014413,2]
[330893038,1719920660365,154.86836189,0.00014999,2]
[330893039,1719920674107,457.96077983,0.00014999,2]
[330893040,1719920713050,154.86836189,0.00014999,2]
[330893041,1719920743080,154.86836189,0.00014999,2]
[330893042,1719920747297,776.37615452,0.00014999,2]
[330893043,1719920750851,374.96748227,0.00014999,2]
[330893044,1719920765186,768.73055895,0.00014999,2]
[330893045,1719920772031,566.23632333,0.00014999,2]
[330893046,1719920772592,618.17611777,0.00014999,2]
[330893047,1719920806609,435.03037269,0.00014999,2]
[330893048,1719920821410,182.89700859,0.00014999,2]
[330893049,1719920830123,154.86836189,0.00014999,2]
[330893051,1719920905492,157.31692193,0.00014999,2]
[330893052,1719920921320,776.67023249,0.00014999,2]
[330893058,1719920969383,273.37336231,9.9e-05,2]
[330893061,1719920970785,-585.81396575,0.00015208,2]
[330893063,1719920970821,-290.37843137,0.00015208,2]
[330893065,1719920970868,-585.81396575,0.00015208,2]
[330893077,1719920977616,273.37336231,9.9e-05,2]
[330893078,1719920978071,155.21580568,0.00014999,2]
[330893079,1719920979731,286.62229144,0.00014999,2]
[330893080,1719920983329,200.70286895,0.00014999,2]
[330893081,1719920989244,162.91090393,0.00014999,2]
[330893083,1719921000013,1000.0,0.00015,3]
[330893084,1719921009142,402.85732737,0.00014999,2]
[330893085,1719921015786,309.6439095,0.00014999,2]
[330893086,1719921015989,273.37336231,9.9e-05,2]
[330893087,1719921021766,24900.0,0.00014365,2]
[330893088,1719921022071,608.79482763,0.00014999,2]
[330893089,1719921024170,273.37336231,9.9e-05,2]
[330893126,1719921031827,-3825.92347807,0.00015208,2]
[330893127,1719921031836,-995.09031741,0.0001534,2]
[330893129,1719921031849,-995.09031738,0.00015341,2]
[330893131,1719921031859,-995.09031738,0.00015342,2]
[330893133,1719921031869,-995.09031738,0.00015343,2]
[330893134,1719921031879,-995.09031738,0.00015344,2]
[330893136,1719921031888,-4342.624935,0.00015348,2]
[330893142,1719921032597,273.37336231,9.9e-05,2]
[330893143,1719921036014,195.69863572,0.00014999,2]
[330893144,1719921036657,155.14952167,0.00014999,2]
[330893155,1719921037784,-507.43809346,0.00015348,2]
[330893156,1719921037794,-500.00000099,0.000154,2]
[330893157,1719921037804,-201.81,0.0001544,2]
[330893158,1719921037814,-404.03,0.0001544,2]
[330893159,1719921037824,-298.43,0.0001544,2]
[330893160,1719921037834,-430.80431817,0.0001544,2]
[330893161,1719921037844,-853.48,0.0001544,2]
[330893162,1719921037854,-359.24271288,0.0001544,2]
[330893179,1719921041672,273.37336231,9.9e-05,2]
[330893224,1719921046021,-140.75728712,0.0001544,2]
[330893225,1719921046031,-500.0,0.0001544,2]
[330893226,1719921046040,-261.91,0.0001544,2]
[330893227,1719921046050,-1572.62,0.0001544,2]
[330893228,1719921046059,-500.0,0.0001544,2]
[330893229,1719921046068,-1638.28,0.0001544,2]
[330893230,1719921046077,-801.65,0.0001544,2]
[330893231,1719921046086,-941.64,0.0001544,2]
[330893232,1719921046095,-2211.87,0.0001544,2]
[330893233,1719921046106,-880.58,0.0001544,2]
[330893234,1719921046115,-500.0,0.0001544,2]
[330893235,1719921046125,-500.0,0.0001544,2]
[330893236,1719921046136,-4189.78,0.0001544,2]
[330893237,1719921046145,-5691.23742565,0.0001544,2]
[330893238,1719921051006,195.69863572,0.00014999,2]
[330893239,1719921055856,226.67659189,0.00014999,2]
[330893240,1719921066628,155.14952167,0.00014999,2]
[330893241,1719921087358,776.67023249,0.00014999,2]
[330893242,1719921113452,157.36069011,0.00014999,2]
[330893243,1719921137238,286.70325749,0.00014999,2]
[330893244,1719921140325,200.79020594,0.00014999,2]
[330893245,1719921155322,200.79020594,0.00014999,2]
[330893246,1719921180848,154.86836189,0.00014999,2]
[330893247,1719921201173,1433.52239716,0.00014999,2]
[330893248,1719921209066,565.7746747,0.00014999,2]
[330893249,1719921216848,6980.69445478,0.00014998,2]
[330893250,1719921219211,4111.12943831,0.00014999,2]
[330893251,1719921224186,3925.7164855,0.00014999,2]
[330893252,1719921229330,776.67023249,0.00014999,2]
[330893253,1719921274478,157.36069011,0.00014999,2]
[330893254,1719921278250,286.12631052,0.00014999,2]
[330893255,1719921283596,525.6656446,0.00014999,2]
[330893257,1719921298732,1005.2631448,0.00014382,2]
[330893258,1719921304337,338.02750609,0.00014999,2]
[330893259,1719921352876,262.32435236,0.00014999,2]
[330893260,1719921353396,154.9018025,0.00014999,2]